[Event "*** SCC Grand Prix: Titled Tuesday Blitz"]
[Site "Chess.com"]
[Date "2020.06.09"]
[Round "7"]
[White "shineatchess"]
[Black "Future2700"]
[Result "0-1"]
[WhiteElo "2257"]
[BlackElo "2400"]
[TimeControl "180+1"]
[EndTime "10:19:12 PDT"]
[Termination "Future2700 won by resignation"]

1. e4 {[%clk 0:03:00.9]} 1... c5 {[%clk 0:02:59.6]} 2. Nf3 {[%clk 0:03:00.5]}
2... e6 {[%clk 0:03:00.2]} 3. c3 {[%clk 0:02:53.7]} 3... d5 {[%clk 0:02:59.7]}
4. exd5 {[%clk 0:02:53.2]} 4... Qxd5 {[%clk 0:03:00.6]} 5. d4 {[%clk 0:02:50.3]}
5... Nf6 {[%clk 0:03:00.2]} 6. Na3 {[%clk 0:02:46.4]} 6... Qd8 {[%clk
0:02:59.2]} 7. Nc4 {[%clk 0:02:43.9]} 7... Nc6 {[%clk 0:02:58.4]} 8. Nce5 {[%clk
0:02:29.3]} 8... cxd4 {[%clk 0:02:57.6]} 9. Nxc6 {[%clk 0:02:05.4]} 9... bxc6
{[%clk 0:02:58.5]} 10. Qxd4 {[%clk 0:02:04.8]} 10... Qb6 {[%clk 0:02:49.7]} 11.
Bd3 {[%clk 0:01:31.5]} 11... c5 {[%clk 0:02:48.8]} 12. Qa4+ {[%clk 0:01:25.2]}
12... Bd7 {[%clk 0:02:44.8]} 13. Qc2 {[%clk 0:01:25.2]} 13... Rb8 {[%clk
0:02:38.1]} 14. O-O {[%clk 0:01:24.5]} 14... Be7 {[%clk 0:02:37.2]} 15. Be3
{[%clk 0:01:12.4]} 15... Nd5 {[%clk 0:02:35.7]} 16. Bd2 {[%clk 0:01:03.3]} 16...
O-O {[%clk 0:02:34]} 17. b3 {[%clk 0:01:00.4]} 17... Bc6 {[%clk 0:02:26.2]} 18.
Ne5 {[%clk 0:00:59.5]} 18... h6 {[%clk 0:02:22.9]} 19. Nxc6 {[%clk 0:00:49.1]}
19... Qxc6 {[%clk 0:02:23.8]} 20. Be4 {[%clk 0:00:49.5]} 20... Qc7 {[%clk
0:02:18.8]} 21. c4 {[%clk 0:00:47.5]} 21... Nb4 {[%clk 0:02:14.9]} 22. Bxb4
{[%clk 0:00:46.6]} 22... Rxb4 {[%clk 0:02:15.6]} 23. Qe2 {[%clk 0:00:41.9]}
23... Bf6 {[%clk 0:02:15.7]} 24. Rad1 {[%clk 0:00:40.3]} 24... Bd4 {[%clk
0:02:16.6]} 25. Bb1 {[%clk 0:00:37.6]} 25... a5 {[%clk 0:02:08.4]} 26. Qe4
{[%clk 0:00:37.3]} 26... g6 {[%clk 0:02:08.7]} 27. Qh4 {[%clk 0:00:36.5]} 27...
Kg7 {[%clk 0:02:08.1]} 28. Rd3 {[%clk 0:00:29.3]} 28... Qe5 {[%clk 0:02:04.7]}
29. Rfd1 {[%clk 0:00:25.7]} 29... g5 {[%clk 0:01:59.6]} 30. Qh3 {[%clk
0:00:22.8]} 30... a4 {[%clk 0:01:52.8]} 31. R3d2 {[%clk 0:00:21.7]} 31... axb3
{[%clk 0:01:52.1]} 32. axb3 {[%clk 0:00:21.2]} 32... Rfb8 {[%clk 0:01:47.6]} 33.
Qd3 {[%clk 0:00:20.1]} 33... Qf6 {[%clk 0:01:45.9]} 34. Bc2 {[%clk 0:00:19.3]}
34... Rd8 {[%clk 0:01:41.9]} 35. Qh7+ {[%clk 0:00:18.4]} 35... Kf8 {[%clk
0:01:42.5]} 36. g3 {[%clk 0:00:17.4]} 36... Ra8 {[%clk 0:01:33.4]} 37. Kg2
{[%clk 0:00:17.2]} 37... Ra2 {[%clk 0:01:33.5]} 38. Be4 {[%clk 0:00:15.3]} 38...
Rxd2 {[%clk 0:01:29.8]} 39. Rxd2 {[%clk 0:00:15.6]} 39... Rxb3 {[%clk
0:01:29.6]} 40. Ra2 {[%clk 0:00:15.5]} 40... Rb8 {[%clk 0:01:24]} 41. f3 {[%clk
0:00:14.3]} 41... Qg7 {[%clk 0:01:20.9]} 42. Qxg7+ {[%clk 0:00:13]} 42... Kxg7
{[%clk 0:01:21.8]} 43. h4 {[%clk 0:00:12.4]} 43... f5 {[%clk 0:01:21.3]} 44. Bd3
{[%clk 0:00:11.5]} 44... g4 {[%clk 0:01:19]} 45. fxg4 {[%clk 0:00:10.6]} 45...
fxg4 {[%clk 0:01:19.9]} 46. Ra7+ {[%clk 0:00:10.5]} 46... Kf6 {[%clk 0:01:19.7]}
47. Rh7 {[%clk 0:00:09.7]} 47... Rb2+ {[%clk 0:01:19.6]} 48. Kf1 {[%clk
0:00:09.7]} 48... Rf2+ {[%clk 0:01:18.2]} 49. Ke1 {[%clk 0:00:08.9]} 49... Rf3
{[%clk 0:01:17.7]} 50. Rxh6+ {[%clk 0:00:09.1]} 50... Kg7 {[%clk 0:01:16.1]} 51.
Rg6+ {[%clk 0:00:09.1]} 51... Kf7 {[%clk 0:01:15.9]} 52. Bc2 {[%clk 0:00:07.9]}
52... Rc3 {[%clk 0:01:15.3]} 53. Be4 {[%clk 0:00:06.3]} 53... Re3+ {[%clk
0:01:15.3]} 54. Kd2 {[%clk 0:00:06.3]} 54... Rxe4 {[%clk 0:01:16.2]} 55. h5
{[%clk 0:00:06.6]} 55... Be5 {[%clk 0:01:09.5]} 56. Kd3 {[%clk 0:00:05]} 56...
Rd4+ {[%clk 0:01:08.4]} 57. Ke3 {[%clk 0:00:05]} 57... Bxg3 {[%clk 0:01:09]} 58.
h6 {[%clk 0:00:04.1]} 58... Kxg6 {[%clk 0:01:08.7]} 0-1

[Event "*** SCC Grand Prix: Titled Tuesday Blitz"]
[Site "Chess.com"]
[Date "2020.06.09"]
[Round "7"]
[White "BlackBoarder"]
[Black "OparinGrigoriy"]
[Result "1-0"]
[WhiteElo "2668"]
[BlackElo "2874"]
[TimeControl "180+1"]
[EndTime "10:19:13 PDT"]
[Termination "BlackBoarder won on time"]

1. e4 {[%clk 0:03:00.4]} 1... c6 {[%clk 0:02:58.7]} 2. Nf3 {[%clk 0:03:00.3]}
2... d5 {[%clk 0:02:59.6]} 3. Nc3 {[%clk 0:03:00.2]} 3... dxe4 {[%clk 0:03:00]}
4. Nxe4 {[%clk 0:03:00.4]} 4... Nf6 {[%clk 0:03:00.9]} 5. Nxf6+ {[%clk
0:03:00.6]} 5... exf6 {[%clk 0:03:01.8]} 6. Bc4 {[%clk 0:03:00.9]} 6... Na6
{[%clk 0:03:01.7]} 7. O-O {[%clk 0:02:56.7]} 7... Nc7 {[%clk 0:02:58]} 8. Re1+
{[%clk 0:02:33.2]} 8... Be7 {[%clk 0:02:56.1]} 9. Qe2 {[%clk 0:02:33.2]} 9...
Be6 {[%clk 0:02:51.7]} 10. Bxe6 {[%clk 0:02:29.1]} 10... Nxe6 {[%clk 0:02:52.6]}
11. d4 {[%clk 0:02:28.6]} 11... O-O {[%clk 0:02:52.3]} 12. c3 {[%clk 0:02:27.9]}
12... Re8 {[%clk 0:02:50.2]} 13. Bd2 {[%clk 0:02:24]} 13... a5 {[%clk
0:02:46.7]} 14. a4 {[%clk 0:02:20.9]} 14... Qd5 {[%clk 0:02:25.5]} 15. Qd3
{[%clk 0:02:09.4]} 15... Rad8 {[%clk 0:02:03]} 16. h3 {[%clk 0:02:03.3]} 16...
Nc5 {[%clk 0:01:43.9]} 17. Qc2 {[%clk 0:01:51.9]} 17... Qb3 {[%clk 0:01:27.3]}
18. Qxb3 {[%clk 0:01:40.2]} 18... Nxb3 {[%clk 0:01:28.2]} 19. Rad1 {[%clk
0:01:37.4]} 19... b5 {[%clk 0:01:21]} 20. axb5 {[%clk 0:01:33.1]} 20... cxb5
{[%clk 0:01:21.9]} 21. Bf4 {[%clk 0:01:29.6]} 21... a4 {[%clk 0:01:14.8]} 22.
Nd2 {[%clk 0:01:28.3]} 22... g5 {[%clk 0:00:44.7]} 23. Bg3 {[%clk 0:01:03.3]}
23... f5 {[%clk 0:00:37.7]} 24. f3 {[%clk 0:00:55.9]} 24... f4 {[%clk
0:00:30.8]} 25. Bf2 {[%clk 0:00:55.5]} 25... Nxd2 {[%clk 0:00:30]} 26. Rxd2
{[%clk 0:00:55.7]} 26... Bd6 {[%clk 0:00:30.6]} 27. Rde2 {[%clk 0:00:52.4]}
27... Rxe2 {[%clk 0:00:31]} 28. Rxe2 {[%clk 0:00:53.3]} 28... f6 {[%clk
0:00:31.1]} 29. Kf1 {[%clk 0:00:50.2]} 29... Kf7 {[%clk 0:00:31.6]} 30. Ke1
{[%clk 0:00:50.4]} 30... b4 {[%clk 0:00:19.4]} 31. cxb4 {[%clk 0:00:22.9]} 31...
Bxb4+ {[%clk 0:00:20.3]} 32. Kd1 {[%clk 0:00:23.3]} 32... Rc8 {[%clk 0:00:15.8]}
33. Be1 {[%clk 0:00:03.3]} 33... Bd6 {[%clk 0:00:14.9]} 34. Bc3 {[%clk 0:00:03]}
34... a3 {[%clk 0:00:15.5]} 35. Kc2 {[%clk 0:00:02.1]} 35... a2 {[%clk
0:00:09.1]} 36. Re1 {[%clk 0:00:02.2]} 36... Re8 {[%clk 0:00:09.8]} 37. Ra1
{[%clk 0:00:01.8]} 37... Re2+ {[%clk 0:00:09.9]} 38. Kd3 {[%clk 0:00:01.7]}
38... Rxg2 {[%clk 0:00:10.6]} 39. Rxa2 {[%clk 0:00:02.2]} 39... Rg3 {[%clk
0:00:10]} 40. Ke4 {[%clk 0:00:02.7]} 40... Rxh3 {[%clk 0:00:05]} 41. Ra6 {[%clk
0:00:02.9]} 41... Bf8 {[%clk 0:00:03]} 42. d5 {[%clk 0:00:03.1]} 1-0

[Event "*** SCC Grand Prix: Titled Tuesday Blitz"]
[Site "Chess.com"]
[Date "2020.06.09"]
[Round "7"]
[White "Oneofmyturns"]
[Black "GMKrikor"]
[Result "1-0"]
[WhiteElo "2586"]
[BlackElo "2716"]
[TimeControl "180+1"]
[EndTime "10:19:15 PDT"]
[Termination "Oneofmyturns won on time"]

1. d4 {[%clk 0:03:00.9]} 1... Nf6 {[%clk 0:02:59.3]} 2. c4 {[%clk 0:03:00.7]}
2... g6 {[%clk 0:02:59.5]} 3. Nc3 {[%clk 0:03:01]} 3... d5 {[%clk 0:02:59.6]} 4.
cxd5 {[%clk 0:03:01.2]} 4... Nxd5 {[%clk 0:03:00.5]} 5. e4 {[%clk 0:03:01.9]}
5... Nxc3 {[%clk 0:03:00.9]} 6. bxc3 {[%clk 0:03:02.8]} 6... Bg7 {[%clk
0:03:01.5]} 7. Be3 {[%clk 0:03:03.5]} 7... c5 {[%clk 0:03:01.4]} 8. Rc1 {[%clk
0:03:04]} 8... Qa5 {[%clk 0:02:59.2]} 9. Qd2 {[%clk 0:03:04.1]} 9... O-O {[%clk
0:02:48.7]} 10. Nf3 {[%clk 0:03:00.4]} 10... cxd4 {[%clk 0:02:36.4]} 11. cxd4
{[%clk 0:03:01.3]} 11... Qxd2+ {[%clk 0:02:36.8]} 12. Nxd2 {[%clk 0:03:01.7]}
12... Nc6 {[%clk 0:02:31.8]} 13. Nb3 {[%clk 0:03:00.3]} 13... a5 {[%clk
0:02:32]} 14. d5 {[%clk 0:02:38.3]} 14... Nb4 {[%clk 0:02:19.7]} 15. a4 {[%clk
0:02:38.7]} 15... f5 {[%clk 0:02:02.2]} 16. f3 {[%clk 0:02:29.6]} 16... fxe4
{[%clk 0:01:58.8]} 17. fxe4 {[%clk 0:02:30.5]} 17... e6 {[%clk 0:01:05.3]} 18.
Bc4 {[%clk 0:01:53]} 18... exd5 {[%clk 0:01:03.9]} 19. exd5 {[%clk 0:01:53.9]}
19... Kh8 {[%clk 0:00:34]} 20. Rf1 {[%clk 0:01:33.5]} 20... Bf5 {[%clk
0:00:33.5]} 21. Bc5 {[%clk 0:01:26]} 21... Rfe8+ {[%clk 0:00:29]} 22. Kf2 {[%clk
0:01:26.3]} 22... Rac8 {[%clk 0:00:29.4]} 23. Bb5 {[%clk 0:00:40.9]} 23... Red8
{[%clk 0:00:15.4]} 24. Bb6 {[%clk 0:00:14.2]} 24... Rxd5 {[%clk 0:00:12.1]} 25.
Rxc8+ {[%clk 0:00:14.3]} 25... Bxc8 {[%clk 0:00:13]} 26. Rc1 {[%clk 0:00:14.1]}
26... Bf5 {[%clk 0:00:13]} 27. Rc7 {[%clk 0:00:10.8]} 27... h5 {[%clk 0:00:10]}
28. Nxa5 {[%clk 0:00:07.6]} 28... Rd2+ {[%clk 0:00:05.4]} 29. Ke1 {[%clk
0:00:04.6]} 29... Rxg2 {[%clk 0:00:03.3]} 30. Rxb7 {[%clk 0:00:03.6]} 30... Nc2+
{[%clk 0:00:02.9]} 31. Kf1 {[%clk 0:00:02.9]} 31... Rxh2 {[%clk 0:00:02.5]} 32.
Rb8+ {[%clk 0:00:02.6]} 32... Kh7 {[%clk 0:00:02.5]} 33. Rb7 {[%clk 0:00:03.5]}
33... Kh6 {[%clk 0:00:03]} 34. Kg1 {[%clk 0:00:02.4]} 34... Rd2 {[%clk
0:00:02.4]} 35. Nb3 {[%clk 0:00:02.7]} 35... Rd1+ {[%clk 0:00:02.4]} 36. Kf2
{[%clk 0:00:03.6]} 36... Be5 {[%clk 0:00:02.4]} 37. Ke2 {[%clk 0:00:03.7]} 37...
Rb1 {[%clk 0:00:01.9]} 38. Kd2 {[%clk 0:00:03.8]} 38... Nb4 {[%clk 0:00:01.5]}
39. Be3+ {[%clk 0:00:03.7]} 39... g5 {[%clk 0:00:01.2]} 40. Nc5 {[%clk
0:00:04.6]} 40... Rb2+ {[%clk 0:00:01.2]} 41. Ke1 {[%clk 0:00:04.6]} 41... Nd5
{[%clk 0:00:02.1]} 42. Bc1 {[%clk 0:00:04.2]} 1-0

[Event "*** SCC Grand Prix: Titled Tuesday Blitz"]
[Site "Chess.com"]
[Date "2020.06.09"]
[Round "7"]
[White "MarceloPlaya"]
[Black "chenxiaoyuer"]
[Result "0-1"]
[WhiteElo "2243"]
[BlackElo "2379"]
[TimeControl "180+1"]
[EndTime "10:19:15 PDT"]
[Termination "chenxiaoyuer won on time"]

1. e4 {[%clk 0:03:00.9]} 1... c5 {[%clk 0:02:59.8]} 2. Nf3 {[%clk 0:03:00.1]}
2... d6 {[%clk 0:03:00]} 3. d4 {[%clk 0:02:59.3]} 3... cxd4 {[%clk 0:03:00.9]}
4. Nxd4 {[%clk 0:02:58.8]} 4... Nf6 {[%clk 0:03:01.4]} 5. Nc3 {[%clk 0:02:56.5]}
5... Nc6 {[%clk 0:02:59.4]} 6. Bg5 {[%clk 0:02:55.1]} 6... e6 {[%clk 0:02:58.8]}
7. Qd2 {[%clk 0:02:53.9]} 7... Qb6 {[%clk 0:02:57.7]} 8. Nb3 {[%clk 0:02:50.1]}
8... Be7 {[%clk 0:02:56.4]} 9. O-O-O {[%clk 0:02:48.4]} 9... O-O {[%clk
0:02:56.6]} 10. h4 {[%clk 0:02:46.5]} 10... Rd8 {[%clk 0:02:50.7]} 11. Be3
{[%clk 0:02:26.2]} 11... Qc7 {[%clk 0:02:49.4]} 12. g4 {[%clk 0:02:18.3]} 12...
d5 {[%clk 0:02:31.9]} 13. exd5 {[%clk 0:02:17.3]} 13... Nxd5 {[%clk 0:02:27.2]}
14. Nxd5 {[%clk 0:02:13.9]} 14... Rxd5 {[%clk 0:02:24.5]} 15. Bd3 {[%clk
0:02:13]} 15... Nb4 {[%clk 0:02:15]} 16. Kb1 {[%clk 0:02:11.5]} 16... b6 {[%clk
0:02:09]} 17. g5 {[%clk 0:01:48.5]} 17... Ba6 {[%clk 0:01:56.5]} 18. Qe2 {[%clk
0:01:34.6]} 18... Nxd3 {[%clk 0:01:32.6]} 19. cxd3 {[%clk 0:01:33.2]} 19... Rad8
{[%clk 0:01:28.1]} 20. Nc1 {[%clk 0:01:30.4]} 20... Qb7 {[%clk 0:01:07.3]} 21.
Qf3 {[%clk 0:01:10.7]} 21... R5d7 {[%clk 0:00:34.8]} 22. Qxb7 {[%clk 0:00:48.5]}
22... Bxb7 {[%clk 0:00:33.6]} 23. Rhe1 {[%clk 0:00:48.5]} 23... Bf3 {[%clk
0:00:32.4]} 24. a3 {[%clk 0:00:38]} 24... Bxd1 {[%clk 0:00:31.1]} 25. Rxd1
{[%clk 0:00:37.7]} 25... f6 {[%clk 0:00:23]} 26. f4 {[%clk 0:00:35.3]} 26...
fxg5 {[%clk 0:00:22.4]} 27. fxg5 {[%clk 0:00:34.1]} 27... Bc5 {[%clk 0:00:21]}
28. Bd2 {[%clk 0:00:18]} 28... Rd4 {[%clk 0:00:17.8]} 29. Re1 {[%clk 0:00:17.2]}
29... Rxh4 {[%clk 0:00:16.4]} 30. Rxe6 {[%clk 0:00:16.5]} 30... Rg4 {[%clk
0:00:15.8]} 31. b4 {[%clk 0:00:15.1]} 31... Bf8 {[%clk 0:00:14.6]} 32. Rc6
{[%clk 0:00:12]} 32... Be7 {[%clk 0:00:12]} 33. Rc7 {[%clk 0:00:10.8]} 33...
Bxg5 {[%clk 0:00:11.8]} 34. Bc3 {[%clk 0:00:10.8]} 34... Bf6 {[%clk 0:00:10.8]}
35. Bxf6 {[%clk 0:00:09.5]} 35... gxf6 {[%clk 0:00:11.7]} 36. Rxa7 {[%clk
0:00:09.1]} 36... h5 {[%clk 0:00:11.3]} 37. Ra6 {[%clk 0:00:08.7]} 37... h4
{[%clk 0:00:11.4]} 38. Rxb6 {[%clk 0:00:08.8]} 38... h3 {[%clk 0:00:10.7]} 39.
Rxf6 {[%clk 0:00:08.6]} 39... Rh4 {[%clk 0:00:08.5]} 40. Rf1 {[%clk 0:00:06.6]}
40... h2 {[%clk 0:00:08.7]} 41. Rh1 {[%clk 0:00:06.6]} 41... Kf7 {[%clk
0:00:08.9]} 42. Kc2 {[%clk 0:00:04.7]} 42... Rg8 {[%clk 0:00:08.9]} 43. Ne2
{[%clk 0:00:03.2]} 43... Rg2 {[%clk 0:00:08.5]} 44. Kd2 {[%clk 0:00:02.8]} 44...
Ke6 {[%clk 0:00:08]} 45. Ke1 {[%clk 0:00:01.2]} 45... Kd5 {[%clk 0:00:06.8]} 0-1

[Event "*** SCC Grand Prix: Titled Tuesday Blitz"]
[Site "Chess.com"]
[Date "2020.06.09"]
[Round "7"]
[White "DACF2905"]
[Black "jonaszmb"]
[Result "0-1"]
[WhiteElo "2235"]
[BlackElo "2425"]
[TimeControl "180+1"]
[EndTime "10:19:17 PDT"]
[Termination "jonaszmb won on time"]

1. d4 {[%clk 0:03:00.9]} 1... d5 {[%clk 0:02:59.5]} 2. c4 {[%clk 0:03:00.2]}
2... Bf5 {[%clk 0:03:00]} 3. Nc3 {[%clk 0:02:58.7]} 3... e6 {[%clk 0:03:00.1]}
4. cxd5 {[%clk 0:02:57.5]} 4... exd5 {[%clk 0:03:00.1]} 5. Nf3 {[%clk
0:02:57.6]} 5... Nc6 {[%clk 0:02:59.6]} 6. a3 {[%clk 0:02:56]} 6... Nf6 {[%clk
0:02:58.9]} 7. Bf4 {[%clk 0:02:55.4]} 7... Bd6 {[%clk 0:02:57.4]} 8. Bxd6 {[%clk
0:02:53.4]} 8... Qxd6 {[%clk 0:02:58.3]} 9. e3 {[%clk 0:02:53.7]} 9... O-O
{[%clk 0:02:58]} 10. Bd3 {[%clk 0:02:53.4]} 10... Ne7 {[%clk 0:02:52.4]} 11. O-O
{[%clk 0:02:51.1]} 11... c6 {[%clk 0:02:50]} 12. Ne5 {[%clk 0:02:50.5]} 12...
Rae8 {[%clk 0:02:37.5]} 13. Rc1 {[%clk 0:02:48.8]} 13... Nd7 {[%clk 0:02:10.5]}
14. Bxf5 {[%clk 0:01:44.6]} 14... Nxf5 {[%clk 0:02:11.4]} 15. Nd3 {[%clk
0:01:42.1]} 15... Nf6 {[%clk 0:02:04.6]} 16. b4 {[%clk 0:01:41.2]} 16... Qe7
{[%clk 0:01:41]} 17. Qf3 {[%clk 0:01:35.2]} 17... Nd6 {[%clk 0:01:40]} 18. Rfe1
{[%clk 0:01:24.2]} 18... Nc4 {[%clk 0:01:38.4]} 19. Ra1 {[%clk 0:01:19.1]} 19...
Ne4 {[%clk 0:01:36.2]} 20. Ne2 {[%clk 0:01:03]} 20... f5 {[%clk 0:01:31]} 21.
Nc5 {[%clk 0:00:53]} 21... b6 {[%clk 0:01:08.1]} 22. Nd3 {[%clk 0:00:38.4]}
22... Rf6 {[%clk 0:01:06.4]} 23. Nef4 {[%clk 0:00:37.5]} 23... Ref8 {[%clk
0:00:57.6]} 24. b5 {[%clk 0:00:34.2]} 24... g5 {[%clk 0:00:52.2]} 25. Nh5 {[%clk
0:00:27]} 25... Rh6 {[%clk 0:00:50.8]} 26. Ng3 {[%clk 0:00:21.5]} 26... Ncd2
{[%clk 0:00:40.4]} 27. Qe2 {[%clk 0:00:19.2]} 27... c5 {[%clk 0:00:26.7]} 28.
Ne5 {[%clk 0:00:16.5]} 28... g4 {[%clk 0:00:24.7]} 29. Nxe4 {[%clk 0:00:13.5]}
29... Nxe4 {[%clk 0:00:25.6]} 30. f3 {[%clk 0:00:12.3]} 30... Qh4 {[%clk
0:00:25]} 31. g3 {[%clk 0:00:10.2]} 31... Nxg3 {[%clk 0:00:17.2]} 32. Qg2 {[%clk
0:00:04.8]} 32... Nh5 {[%clk 0:00:13.7]} 33. fxg4 {[%clk 0:00:04.4]} 33... fxg4
{[%clk 0:00:11.5]} 34. Qxg4+ {[%clk 0:00:04.4]} 34... Qxg4+ {[%clk 0:00:12.1]}
35. Nxg4 {[%clk 0:00:04.5]} 35... Rg6 {[%clk 0:00:13]} 36. h3 {[%clk 0:00:04.8]}
36... Nf6 {[%clk 0:00:13.1]} 37. Kh2 {[%clk 0:00:04.5]} 37... Nxg4+ {[%clk
0:00:13]} 38. hxg4 {[%clk 0:00:05]} 38... Rf2+ {[%clk 0:00:12.4]} 39. Kg3 {[%clk
0:00:04.1]} 39... Rb2 {[%clk 0:00:07.8]} 40. dxc5 {[%clk 0:00:03.5]} 40... bxc5
{[%clk 0:00:08.7]} 41. a4 {[%clk 0:00:03.9]} 41... h5 {[%clk 0:00:08.9]} 42. Kf4
{[%clk 0:00:03.4]} 42... Rxg4+ {[%clk 0:00:09]} 43. Ke5 {[%clk 0:00:03.7]} 43...
Rd2 {[%clk 0:00:08.8]} 44. Kd6 {[%clk 0:00:03.8]} 44... d4 {[%clk 0:00:08.3]}
45. Kxc5 {[%clk 0:00:02.9]} 45... d3 {[%clk 0:00:08]} 46. Rad1 {[%clk 0:00:02]}
46... Rc2+ {[%clk 0:00:08.2]} 0-1

[Event "*** SCC Grand Prix: Titled Tuesday Blitz"]
[Site "Chess.com"]
[Date "2020.06.09"]
[Round "7"]
[White "mamonika"]
[Black "1f3_2g41-0"]
[Result "0-1"]
[WhiteElo "1936"]
[BlackElo "2206"]
[TimeControl "180+1"]
[EndTime "10:19:17 PDT"]
[Termination "1f3_2g41-0 won on time"]

1. e4 {[%clk 0:03:00.9]} 1... c5 {[%clk 0:02:59.5]} 2. Nf3 {[%clk 0:03:01]} 2...
d6 {[%clk 0:02:59.2]} 3. d4 {[%clk 0:03:01.5]} 3... cxd4 {[%clk 0:03:00.1]} 4.
Nxd4 {[%clk 0:03:02.2]} 4... Nf6 {[%clk 0:02:58.9]} 5. Nc3 {[%clk 0:03:02.3]}
5... a6 {[%clk 0:02:57.5]} 6. Be2 {[%clk 0:02:56.1]} 6... e5 {[%clk 0:02:51.2]}
7. Nb3 {[%clk 0:02:52.3]} 7... Be7 {[%clk 0:02:50.4]} 8. O-O {[%clk 0:02:51.6]}
8... O-O {[%clk 0:02:49.8]} 9. Be3 {[%clk 0:02:45.6]} 9... Be6 {[%clk 0:02:38]}
10. Qd2 {[%clk 0:02:43.9]} 10... Nbd7 {[%clk 0:02:35.8]} 11. a4 {[%clk
0:02:43.6]} 11... Rc8 {[%clk 0:02:32]} 12. a5 {[%clk 0:02:43.5]} 12... Qc7
{[%clk 0:02:27.7]} 13. Rfd1 {[%clk 0:02:42.7]} 13... Bxb3 {[%clk 0:02:19.7]} 14.
cxb3 {[%clk 0:02:40.9]} 14... Nc5 {[%clk 0:02:19.6]} 15. Bxc5 {[%clk 0:01:52.6]}
15... dxc5 {[%clk 0:02:17.4]} 16. Bc4 {[%clk 0:01:45.8]} 16... Rfd8 {[%clk
0:01:57.1]} 17. Bd5 {[%clk 0:01:39.6]} 17... h6 {[%clk 0:01:42.1]} 18. Qe2
{[%clk 0:01:29.2]} 18... g6 {[%clk 0:01:28.8]} 19. Rd3 {[%clk 0:01:26.9]} 19...
Kg7 {[%clk 0:01:28.3]} 20. Rh3 {[%clk 0:01:24.2]} 20... Nh5 {[%clk 0:01:21.4]}
21. Rxh5 {[%clk 0:01:17.1]} 21... gxh5 {[%clk 0:01:19.9]} 22. Qxh5 {[%clk
0:01:16.9]} 22... Bg5 {[%clk 0:01:05.4]} 23. h4 {[%clk 0:01:11.1]} 23... Bd2
{[%clk 0:00:54.5]} 24. Rd1 {[%clk 0:00:41.7]} 24... Bxc3 {[%clk 0:00:43.5]} 25.
bxc3 {[%clk 0:00:38.5]} 25... Qe7 {[%clk 0:00:43]} 26. Rd3 {[%clk 0:00:36.9]}
26... Rd6 {[%clk 0:00:42.1]} 27. Rg3+ {[%clk 0:00:35]} 27... Rg6 {[%clk
0:00:39]} 28. Qf5 {[%clk 0:00:29.7]} 28... Rd8 {[%clk 0:00:32.9]} 29. Rf3 {[%clk
0:00:26.1]} 29... Rd7 {[%clk 0:00:19.4]} 30. h5 {[%clk 0:00:13.1]} 30... Rg5
{[%clk 0:00:16.8]} 31. Qh3 {[%clk 0:00:12.4]} 31... Rd6 {[%clk 0:00:13.9]} 32.
Rf5 {[%clk 0:00:10.5]} 32... Rxf5 {[%clk 0:00:12.9]} 33. Qxf5 {[%clk 0:00:10.5]}
33... Qf6 {[%clk 0:00:12.3]} 34. Qg4+ {[%clk 0:00:10]} 34... Qg5 {[%clk
0:00:12]} 35. Qxg5+ {[%clk 0:00:07.1]} 35... hxg5 {[%clk 0:00:12.9]} 36. g4
{[%clk 0:00:06.8]} 36... Rd7 {[%clk 0:00:12.4]} 37. Kg2 {[%clk 0:00:06.4]} 37...
Kf6 {[%clk 0:00:12.4]} 38. f3 {[%clk 0:00:06.7]} 38... Ke7 {[%clk 0:00:12]} 39.
Kf2 {[%clk 0:00:06.8]} 39... f6 {[%clk 0:00:11.8]} 40. Ke3 {[%clk 0:00:06.4]}
40... Kd6 {[%clk 0:00:12]} 41. Kd3 {[%clk 0:00:06.9]} 41... Kc7 {[%clk
0:00:11.7]} 42. Kc4 {[%clk 0:00:06.7]} 42... b6 {[%clk 0:00:12.2]} 43. axb6+
{[%clk 0:00:06.4]} 43... Kxb6 {[%clk 0:00:13.1]} 44. Kd3 {[%clk 0:00:05.3]}
44... Rc7 {[%clk 0:00:13]} 45. b4 {[%clk 0:00:03.3]} 45... cxb4 {[%clk
0:00:12.5]} 46. cxb4 {[%clk 0:00:03.3]} 46... Rc1 {[%clk 0:00:12.9]} 47. Bg8
{[%clk 0:00:01.4]} 47... Rh1 {[%clk 0:00:12.6]} 48. Ke3 {[%clk 0:00:01.2]} 48...
Kb5 {[%clk 0:00:12.5]} 49. Kd2 {[%clk 0:00:01.3]} 49... Kxb4 {[%clk 0:00:12.9]}
0-1